Workbook

Sheet ADA DPAC FEB 2024 CAA
A1: DEPARTMENT OF TRANSPORTATION - CALTRANS
A2: DBE Commitment at Award (CAA) on Federally Funded Architectural & Engineering Contracts - October 1, 2023 - February 29, 2024
A4: Total Award Amount Year-to-Date (YTD) | C4: Total DBE Commitment Amount YTD | F4: Total Prime Contracts Awarded YTD
A5: 249311098 | C5: =SUM(C7:C18) -> 55712305.09 | F5: =SUM(C117:C122,I117:I122,F117:F122) -> 18
A6: Groups | C6: Commitment Dollars YTD | D6: Firms YTD | E6: Contracts YTD | F6: % of Contracts | G6: % of DBE $ | H6: % of Total $
A7: Hispanic American Male | C7: =SUMIF(D26:D40,"m", C26:C40) -> 18608944.88 | D7: =COUNTIF(D26:D40,"M") -> 12 | E7: =SUMIF(D26:D40,"M",E26:E40) -> 21 | F7: =E7/E20 -> 0.2359550562 | G7: =C7/C5 -> 0.3340185772 | H7: =C7/A5 -> 0.07464146213
A8: Hispanic American Female | C8: =SUMIF(D26:D40,"F", C26:C40) -> 100000.01 | D8: =COUNTIF(D26:D40,"F") -> 1 | E8: =SUMIF(D26:D40,"F",E26:E40) -> 1 | F8: =E8/E20 -> 0.01123595506 | G8: =C8/C5 -> 0.001794935784 | H8: =C8/A5 -> 0.0004011053291
A9: African American Male | C9: =SUMIF(D47:D51,"m", C47:C51) -> 367895.11 | D9: =COUNTIF(D47:D51,"M") -> 2 | E9: =SUMIF(D47:D51,"M",E47:E51) -> 2 | F9: =E9/E20 -> 0.02247191011 | G9: =C9/C5 -> 0.006603480316 | H9: =C9/A5 -> 0.001475646744
A10: African American Female | C10: =SUMIF(D47:D51,"F", C47:C51) -> 80000 | D10: =COUNTIF(D47:D51,"F") -> 1 | E10: =SUMIF(D47:D51,"F",E47:E51) -> 1 | F10: =E10/E20 -> 0.01123595506 | G10: =C10/C5 -> 0.001435948483 | H10: =C10/A5 -> 0.0003208842312
A11: Asian Pacific Male | C11: =SUMIF(D64:D86,"m", C64:C86) -> 10908089.82 | D11: =COUNTIF(D64:D86,"M") -> 16 | E11: =SUMIF(D64:D86,"M",E64:E86) -> 23 | F11: =E11/E20 -> 0.2584269663 | G11: =C11/C5 -> 0.1957931879 | H11: =C11/A5 -> 0.04375292519
A12: Asian Pacific Female | C12: =SUMIF(D64:D86,"F", C64:C86) -> 4557695.88 | D12: =COUNTIF(D64:D86,"F") -> 3 | E12: =SUMIF(D64:D86,"F",E64:E86) -> 6 | F12: =E12/E20 -> 0.06741573034 | G12: =C12/C5 -> 0.08180770608 | H12: =C12/A5 -> 0.01828115923
A13: Subcontinent Asian Male | C13: =SUMIF(D54:D61,"m", C54:C61) -> 10705398.65 | D13: =COUNTIF(D54:D61,"M") -> 6 | E13: =SUMIF(D54:D61,"M",E54:E61) -> 11 | F13: =E13/E20 -> 0.1235955056 | G13: =C13/C5 -> 0.1921550119 | H13: =C13/A5 -> 0.04293992019
A14: Subcontinent Asian Female | C14: =SUMIF(D54:D61,"F", C54:C61) -> 585000 | D14: =COUNTIF(D54:D61,"F") -> 1 | E14: =SUMIF(D54:D61,"F",E54:E61) -> 1 | F14: =E14/E20 -> 0.01123595506 | G14: =C14/C5 -> 0.01050037328 | H14: =C14/A5 -> 0.00234646594
A15: Native American Male | C15: =SUMIF(D43:D44,"m", C43:C44) -> 0 | D15: =COUNTIF(D43:D44,"M") -> 0 | E15: =SUMIF(D43:D44,"M",E43:E44) -> 0 | F15: =E15/E20 -> 0 | G15: =C15/C5 -> 0 | H15: =C15/A5 -> 0
A16: Native American Female | C16: =SUMIF(D43:D44,"F", C43:C44) -> 180000.01 | D16: =COUNTIF(D43:D44,"F") -> 1 | E16: =SUMIF(D43:D44,"F",E43:E44) -> 2 | F16: =E16/E20 -> 0.02247191011 | G16: =C16/C5 -> 0.003230884267 | H16: =C16/A5 -> 0.0007219895602
A17: Non Minority Women | C17: =SUMIF(D93:D112,"F", C93:C112) -> 9619280.73 | D17: =COUNTIF(D93:D112,"F") -> 17 | E17: =SUMIF(D93:D112,"F",E93:E112) -> 21 | F17: =E17/E20 -> 0.2359550562 | G17: =C17/C5 -> 0.1726598947 | H17: =C17/A5 -> 0.03858344377
A18: Non Minority Men | C18: =SUMIF(D89:D90,"M", C89:C90) -> 0 | D18: =COUNTIF(D89:D90,"M") -> 0 | E18: =SUMIF(D89:D90,"M",E89:E90) -> 0 | F18: =E18/E20 -> 0 | G18: =C18/C5 -> 0 | H18: =C18/A5 -> 0
A20: Total | C20: =SUM(C7:C18) -> 55712305.09 | D20: =SUM(D7:D19) -> 60 | E20: =SUM(E7:E19) -> 89
A21: Total Prime Contracts Awarded | C21: =SUM(C117:C122,F117:F122,I117:I121) -> 18
A22: Red Italic = DBE firm as Prime
A23: BOLD = women
A25: Hispanic American | C25: Dollars | D25: M/F | E25: Contract | F25: Contract Number | G25: Prime | H25: Prime Name | I25: Districts
A26: ACT CONSULTING ENGINEERS | C26: ='[1]DPAC A&E Worksheet'!G6 -> 1350000 | D26: M | E26: 1 | F26: =FETCHCOMMENT(E26) -> 08A3639 | G26: 1 | H26: =FETCHCOMMENT(G26) -> TranSystems Corporation | I26: 8
A27: CABRINHA HEARN & ASSOCIATES | C27: ='[1]DPAC A&E Worksheet'!G11 -> 110000 | D27: M | E27: 1 | F27: =FETCHCOMMENT(E27) -> 07A5738 | G27: 1 | H27: =FETCHCOMMENT(G27) -> STANTEC CONSULTING SERVICES INC | I27: 7
A28: FILIPPIN ENGINEERING INC | C28: ='[1]DPAC A&E Worksheet'!G19 -> 585000 | D28: M | E28: 1 | F28: =FETCHCOMMENT(E28) -> 07A5729 | G28: 1 | H28: =FETCHCOMMENT(G28) -> NV5 INC | I28: 7
A29: FOUNTAINHEAD CONSULTING CORP | C29: ='[1]DPAC A&E Worksheet'!G28 -> 3297267.1 | D29: M | E29: 2 | F29: =FETCHCOMMENT(E29) -> 11A3661 0612971 | G29: 2 | H29: =FETCHCOMMENT(G29) -> Kleinfelder Construction Services, Inc. MS ENGINEERS | I29: 6,11
A30: LA SALLE SOLUTIONS | C30: ='[1]DPAC A&E Worksheet'!G35 -> 1800164.6 | D30: M | E30: 2 | F30: =FETCHCOMMENT(E30) -> 11A3661 08A3604 | G30: 2 | H30: =FETCHCOMMENT(G30) -> Kleinfelder Construction Services, Inc. Bureau Veritas North America, Inc. | I30: 8,11
A31: RIVER FOCUS | C31: ='[1]DPAC A&E Worksheet'!G44 -> 100000.01 | D31: M | E31: 1 | F31: =FETCHCOMMENT(E31) -> 04A6813 | G31: 1 | H31: =FETCHCOMMENT(G31) -> HDR Engineering, Inc. | I31: 4
A32: SAMA CONSTRUCTION | C32: ='[1]DPAC A&E Worksheet'!G51 -> 1667895.1 | D32: M | E32: 3 | F32: =FETCHCOMMENT(E32) -> 59A1258 08A3604 06A2975 | G32: 2 | H32: =FETCHCOMMENT(G32) -> Bureau Veritas North America, Inc. NV5 INC | I32: 6,8,59
A33: SIX RIVERS GEOSCIENCES | C33: ='[1]DPAC A&E Worksheet'!C40 -> 100000.01 | D33: F | E33: 1 | F33: =FETCHCOMMENT(E33) -> 04A6813 | G33: 1 | H33: =FETCHCOMMENT(G33) -> HDR Engineering, Inc. | I33: 4
A34: SYRUSA ENGINEERING INC | C34: ='[1]DPAC A&E Worksheet'!G63 -> 4112856.97 | D34: M | E34: 4 | F34: =FETCHCOMMENT(E34) -> 59A1258 09A0964 06A2975 07A5729 | G34: 2 | H34: =FETCHCOMMENT(G34) -> Bureau Veritas North America, Inc. NV5 INC | I34: 6,7,9,59
A35: TRIDENT CPM CONSULTING | C35: ='[1]DPAC A&E Worksheet'!G72 -> 100000 | D35: M | E35: 1 | F35: =FETCHCOMMENT(E35) -> 07A5677 | G35: 1 | H35: =FETCHCOMMENT(G35) -> ARCADIS INC | I35: 7
A36: UNICO ENGINEERING CONSULTING | C36: ='[1]DPAC A&E Worksheet'!G78 -> 2507179.95 | D36: M | E36: 2 | F36: =FETCHCOMMENT(E36) -> 09A0964 06A2975 | G36: 1 | H36: =FETCHCOMMENT(G36) -> NV5 INC | I36: 6,9
A37: VALLE & ASSOCIATES CIVIL | C37: ='[1]DPAC A&E Worksheet'!G86 -> 739296.3 | D37: M | E37: 1 | F37: =FETCHCOMMENT(E37) -> 06A2971 | G37: 1 | H37: =FETCHCOMMENT(G37) -> MS ENGINEERING INC | I37: 6
A38: VSCE INC | C38: ='[1]DPAC A&E Worksheet'!G93 -> 2239284.85 | D38: M | E38: 2 | F38: =FETCHCOMMENT(E38) -> 09A0964 06A2975 | G38: 1 | H38: =FETCHCOMMENT(G38) -> NV5 INC | I38: 6,9
F39: =FETCHCOMMENT(E39) ->  | H39: =FETCHCOMMENT(G39) -> 
F40: =FETCHCOMMENT(E40) ->  | H40: =FETCHCOMMENT(G40) -> 
A42: Native American | C42: Dollars | D42: M/F | E42: Contract | F42: Contract Number | G42: Prime | H42: Prime Name | I42: Districts
A43: GERONIMO ENGINEERING | C43: ='[1]DPAC A&E Worksheet'!W8 -> 180000.01 | D43: F | E43: 2 | F43: =FETCHCOMMENT(E43) -> 04A6813 04A6823 | G43: 2 | H43: =FETCHCOMMENT(G43) -> HDR Engineering, Inc. BROWN AND CALDWELL | I43: 4
F44: =FETCHCOMMENT(E44) ->  | H44: =FETCHCOMMENT(G44) -> 
A46: African American | C46: Dollars | D46: M/F | E46: Contract | F46: Contract Number | G46: Prime | H46: Prime Name | I46: Districts
A47: ACTIVEWAYZ ENGINEERING, INC | C47: ='[1]DPAC A&E Worksheet'!AI8 -> 100000.01 | D47: M | E47: 1 | F47: =FETCHCOMMENT(E47) -> 04A6813 | G47: 1 | H47: =FETCHCOMMENT(G47) -> HDR Engineering, Inc. | I47: 4
A48: ACUMEN BUILDING | C48: ='[1]DPAC A&E Worksheet'!AI17 -> 267895.1 | D48: M | E48: 1 | F48: =FETCHCOMMENT(E48) -> 06A2975 | G48: 1 | H48: =FETCHCOMMENT(G48) -> NV5 INC | I48: 6
A49: O2EPCM INC | C49: ='[1]DPAC A&E Worksheet'!AC8 -> 80000 | D49: F | E49: 1 | F49: =FETCHCOMMENT(E49) -> 07A5677 | G49: 1 | H49: =FETCHCOMMENT(G49) -> ARCADIS INC | I49: 7
F50: =FETCHCOMMENT(E50) ->  | H50: =FETCHCOMMENT(G50) -> 
F51: =FETCHCOMMENT(E51) ->  | H51: =FETCHCOMMENT(G51) -> 
A53: Sub Cont Asian | C53: Dollars | D53: M/F | E53: Contract | F53: Contract Number | G53: Prime | H53: Prime Name | I53: Districts
A54: AMC INC | C54: ='[1]DPAC A&E Worksheet'!AQ13 -> 4020000 | D54: M | E54: 3 | F54: =FETCHCOMMENT(E54) -> 59A1258 07A5677 08A3604 | G54: 2 | H54: =FETCHCOMMENT(G54) -> ARCADIS INC Bureau Veritas North America, Inc. | I54: 7,8,59
A55: EARTH MECHANICS | C55: ='[1]DPAC A&E Worksheet'!AQ23 -> 135000 | D55: M | E55: 1 | F55: =FETCHCOMMENT(E55) -> 08A3639 | G55: 1 | H55: =FETCHCOMMENT(G55) -> TranSystems Corporation | I55: 8
A56: FULCRUM CONSULTANTS INC | C56: ='[1]DPAC A&E Worksheet'!AQ34 -> 739296.3 | D56: M | E56: 1 | F56: =FETCHCOMMENT(E56) -> 06A2971 | G56: 1 | H56: =FETCHCOMMENT(G56) -> MS ENGINEERS INC | I56: 6
A57: GRIT FORCE INC | C57: ='[1]DPAC A&E Worksheet'!AQ56 -> 1428233.3 | D57: M | E57: 1 | F57: =FETCHCOMMENT(E57) -> 06A2969 | G57: 1 | H57: =FETCHCOMMENT(G57) -> ATLAS TECHNICAL CONSULTANTS INC | I57: 6
A58: REDDY ENGINEERING | C58: ='[1]DPAC A&E Worksheet'!AQ65 -> 1070164.6 | D58: M | E58: 2 | F58: =FETCHCOMMENT(E58) -> 11A3661 11A3767 | G58: 2 | H58: =FETCHCOMMENT(G58) -> Kleinfelder Construction Services, Inc. Kimley-Horn and Associates, Inc. | I58: 11
A59: S2 ENGINEERING | C59: ='[1]DPAC A&E Worksheet'!AQ81 -> 3312704.45 | D59: M | E59: 3 | F59: =FETCHCOMMENT(E59) -> 09A0964 06A2975 07A5729 | G59: 1 | H59: =FETCHCOMMENT(G59) -> NV5 INC | I59: 6,7,9
A60: SKYLINE CONSULTANTS | C60: ='[1]DPAC A&E Worksheet'!AM8 -> 585000 | D60: F | E60: 1 | F60: =FETCHCOMMENT(E60) -> 07A5729 | G60: 1 | H60: =FETCHCOMMENT(G60) -> NV5 INC | I60: 7
F61: =FETCHCOMMENT(E61) ->  | H61: =FETCHCOMMENT(G61) -> 
A63: Asian Pacific | C63: Dollars | D63: M/F | E63: Contract | F63: Contract Number | G63: Prime | H63: Prime Name | I63: Districts
A64: ADVANTEC CONSULTING ENGINEERS | C64: ='[1]DPAC A&E Worksheet'!O8 -> 1591314.2 | D64: M | E64: 2 | F64: =FETCHCOMMENT(E64) -> 08A3639 09A0976 | G64: 2 | H64: =FETCHCOMMENT(G64) -> TranSystems Corporation Parsons | I64: 6,8
A65: AEW ENGINEERING INC | C65: ='[1]DPAC A&E Worksheet'!O16 -> 160000 | D65: M | E65: 1 | F65: =FETCHCOMMENT(E65) -> 04A6823 | G65: 1 | H65: =FETCHCOMMENT(G65) -> BROWN & CALDWELL | I65: 4
A66: ALIQUOT ASSOCIATES | C66: ='[1]DPAC A&E Worksheet'!O26 -> 500000.05 | D66: M | E66: 1 | F66: =FETCHCOMMENT(E66) -> 04A6813 | G66: 1 | H66: =FETCHCOMMENT(G66) -> HDR Engineering, Inc. | I66: 4
A67: AMC CONSULTING ENGINEERS | C67: ='[1]DPAC A&E Worksheet'!O33 -> 267895.1 | D67: M | E67: 1 | F67: =FETCHCOMMENT(E67) -> 06A2975 | G67: 1 | H67: =FETCHCOMMENT(G67) -> NV5 INC | I67: 6
A68: AXIOM ENGINEERING | C68: ='[1]DPAC A&E Worksheet'!O42 -> 574116.65 | D68: M | E68: 1 | F68: =FETCHCOMMENT(E68) -> 06A2969 | G68: 1 | H68: =FETCHCOMMENT(G68) -> ATLAS TECHNICAL CONSULTANTS INC | I68: 6
A69: C2PM | C69: ='[1]DPAC A&E Worksheet'!K6 -> 425102.98 | D69: F | E69: 1 | F69: =FETCHCOMMENT(E69) -> 11A3661 | G69: 1 | H69: =FETCHCOMMENT(G69) -> Kleinfelder Construction Services, Inc. | I69: 11
A70: ELITE TRANSPORTATION GROUP INC | C70: ='[1]DPAC A&E Worksheet'!O56 -> 312000 | D70: M | E70: 1 | F70: =FETCHCOMMENT(E70) -> 11A3767 | G70: 1 | H70: =FETCHCOMMENT(G70) -> KIMLEY-HORN AND ASSOCIATES | I70: 11
A71: INNOVEX ENVIRONMENTAL | C71: ='[1]DPAC A&E Worksheet'!O63 -> 320000 | D71: M | E71: 1 | F71: =FETCHCOMMENT(E71) -> 04A6823 | G71: 1 | H71: =FETCHCOMMENT(G71) -> BROWN & CALDWELL | I71: 4
A72: KCM ENGINEERING INC | C72: ='[1]DPAC A&E Worksheet'!O69 -> 739296.3 | D72: M | E72: 1 | F72: =FETCHCOMMENT(E72) -> 06A2971 | G72: 1 | H72: =FETCHCOMMENT(G72) -> MS ENGINEERS INC | I72: 6
A73: LIN CONSULTING | C73: ='[1]DPAC A&E Worksheet'!O78 -> 582000 | D73: M | E73: 2 | F73: =FETCHCOMMENT(E73) -> 08A3639 11A3767 | G73: 2 | H73: =FETCHCOMMENT(G73) -> TranSystems Corporation Kimley-Horn and Associates, Inc. | I73: 8,11
A74: MOZAMO ENGINEERING INC | C74: ='[1]DPAC A&E Worksheet'!K26 -> 3820592.9 | D74: F | E74: 4 | F74: =FETCHCOMMENT(E74) -> 06A2969 09A0964 06A2971 06A2975 | G74: 3 | H74: =FETCHCOMMENT(G74) -> ATLAS TECHNICAL CONSULTANTS INC NV5 INC MS ENGINEERING INC | I74: 6,9
A75: PARK ENGINEERING INC | C75: ='[1]DPAC A&E Worksheet'!O87 -> 739296.3 | D75: M | E75: 1 | F75: =FETCHCOMMENT(E75) -> 06A2971 | G75: 1 | H75: =FETCHCOMMENT(G75) -> MS ENGINEERS INC | I75: 6
A76: RAIL SURVEYORS AND ENGINEERS, INC. | C76: ='[1]DPAC A&E Worksheet'!O102 -> 500000.05 | D76: M | E76: 1 | F76: =FETCHCOMMENT(E76) -> 04A6813 | G76: 1 | H76: =FETCHCOMMENT(G76) -> HDR Engineering, Inc. | I76: 4
A77: SAN DIEGUITO ENGINEERING INC | C77: ='[1]DPAC A&E Worksheet'!K40 -> 312000 | D77: F | E77: 1 | F77: =FETCHCOMMENT(E77) -> 11A3767 | G77: 1 | H77: =FETCHCOMMENT(G77) -> KIMLEY-HORN AND ASSOCIATES | I77: 11
A78: SILICON TRANSPORTATION | C78: ='[1]DPAC A&E Worksheet'!O111 -> 78000 | D78: M | E78: 1 | F78: =FETCHCOMMENT(E78) -> 11A3767 | G78: 1 | H78: =FETCHCOMMENT(G78) -> KIMLEY-HORN AND ASSOCIATES | I78: 11
A79: SYSTEM METRICS GROUP | C79: ='[1]DPAC A&E Worksheet'!O118 -> 1051314.2 | D79: M | E79: 1 | F79: =FETCHCOMMENT(E79) -> 09A0976 | G79: 1 | H79: =FETCHCOMMENT(G79) -> PARSONS | I79: 9
A80: TATSUMI AND PARTNERS | C80: ='[1]DPAC A&E Worksheet'!O129 -> 540000 | D80: M | E80: 1 | F80: =FETCHCOMMENT(E80) -> 08A3639 | G80: 1 | H80: =FETCHCOMMENT(G80) -> TranSystems Corporation | I80: 8
A81: TRANSMAT | C81: ='[1]DPAC A&E Worksheet'!O142 -> 2872856.97 | D81: M | E81: 6 | F81: =FETCHCOMMENT(E81) -> 08A3615 09A0964 06A2975 09A0976 06A2975 07A5729 | G81: 3 | H81: =FETCHCOMMENT(G81) -> ATLAS TECHNICAL CONSULTANTS INC NV5 INC PARSONS | I81: 6,7,8,9
A82: TRICERTUS LLC | C82: ='[1]DPAC A&E Worksheet'!O153 -> 80000 | D82: M | E82: 1 | F82: =FETCHCOMMENT(E82) -> 07A5677 | G82: 1 | H82: =FETCHCOMMENT(G82) -> ARCADIS INC | I82: 7
F83: =FETCHCOMMENT(E83) ->  | H83: =FETCHCOMMENT(G83) -> 
F84: =FETCHCOMMENT(E84) ->  | H84: =FETCHCOMMENT(G84) -> 
F85: =FETCHCOMMENT(E85) ->  | H85: =FETCHCOMMENT(G85) -> 
F86: =FETCHCOMMENT(E86) ->  | H86: =FETCHCOMMENT(G86) -> 
A88: Other | C88: Dollars | D88: M/F | E88: Contract | F88: Contract Number | G88: Prime | H88: Prime Name | I88: Districts
F89: =FETCHCOMMENT(E89) ->  | H89: =FETCHCOMMENT(G89) -> 
F90: =FETCHCOMMENT(E90) ->  | H90: =FETCHCOMMENT(G90) -> 
A92: Non Minority Women | C92: Dollars | D92: M/F | E92: Contract | F92: Contract Number | G92: Prime | H92: Prime Name | I92: Districts
A93: ALBAT | C93: ='[1]DPAC A&E Worksheet'!AU7 -> 1764578.48 | D93: F | E93: 2 | F93: =FETCHCOMMENT(E93) -> 11A3661 06A2975 | G93: 2 | H93: =FETCHCOMMENT(G93) -> Kleinfelder Construction Services, Inc. NV5 INC | I93: 6,11
A94: BENNETT ENGINEERING SERVICES, INC. | C94: ='[1]DPAC A&E Worksheet'!AU13 -> 556000.04 | D94: F | E94: 2 | F94: =FETCHCOMMENT(E94) -> 04A6813 11A3767 | G94: 2 | H94: =FETCHCOMMENT(G94) -> HDR Engineering, Inc. Kimley-Horn and Associates, Inc. | I94: 4,11
A95: BLUE LAKE CIVIL | C95: ='[1]DPAC A&E Worksheet'!AU19 -> 546000 | D95: F | E95: 1 | F95: =FETCHCOMMENT(E95) -> 11A3767 | G95: 1 | H95: =FETCHCOMMENT(G95) -> KIMLEY-HORN AND ASSOCIATES | I95: 11
A96: CPM PARTNERS | C96: ='[1]DPAC A&E Worksheet'!AU28 -> 425102.98 | D96: F | E96: 1 | F96: =FETCHCOMMENT(E96) -> 11A3661 | G96: 1 | H96: =FETCHCOMMENT(G96) -> Kleinfelder Construction Services, Inc. | I96: 11
A97: EKOLOJIK | C97: ='[1]DPAC A&E Worksheet'!AU33 -> 85020.58 | D97: F | E97: 1 | F97: =FETCHCOMMENT(E97) -> 11A3661 | G97: 1 | H97: =FETCHCOMMENT(G97) -> Kleinfelder Construction Services, Inc. | I97: 11
A98: GATEWAY PACIFIC | C98: ='[1]DPAC A&E Worksheet'!AU40 -> 886082.3 | D98: F | E98: 2 | F98: =FETCHCOMMENT(E98) -> 11A3767 11A3661 | G98: 2 | H98: =FETCHCOMMENT(G98) -> KIMLEY-HORN AND ASSOCIATES Kleinfelder Construction Services, Inc. | I98: 11
A99: JSE4 | C99: ='[1]DPAC A&E Worksheet'!AU45 -> 213000 | D99: F | E99: 2 | F99: =FETCHCOMMENT(E99) -> 11A3767 08A3639 | G99: 2 | H99: =FETCHCOMMENT(G99) -> KIMLEY-HORN AND ASSOCIATES TranSystems Corporation | I99: 8,11
A100: LEWIS JONES | C100: ='[1]DPAC A&E Worksheet'!AU57 -> 624000 | D100: F | E100: 1 | F100: =FETCHCOMMENT(E100) -> 11A3767 | G100: 1 | H100: =FETCHCOMMENT(G100) -> KIMLEY-HORN AND ASSOCIATES | I100: 11
A101: KELLY MCNUTT CONSULTING, LLC | C101: ='[1]DPAC A&E Worksheet'!AU51 -> 1100000 | D101: F | E101: 1 | F101: =FETCHCOMMENT(E101) -> 04A6685 | G101: 1 | H101: =FETCHCOMMENT(G101) -> Stanton Constructability Services ,LLC | I101: 4
A102: MEGAN STROMBERG CONSTULTING | C102: ='[1]DPAC A&E Worksheet'!AU63 -> 80000 | D102: F | E102: 1 | F102: =FETCHCOMMENT(E102) -> 04A6823 | G102: 1 | H102: =FETCHCOMMENT(G102) -> BROWN & CALDWELL | I102: 4
A103: MOUNTAINVIEW BIOLOGICAL | C103: ='[1]DPAC A&E Worksheet'!AU70 -> 594150 | D103: F | E103: 1 | F103: =FETCHCOMMENT(E103) -> 08A3623 | G103: 1 | H103: =FETCHCOMMENT(G103) -> DUDEK | I103: 8
A104: PRR INC | C104: ='[1]DPAC A&E Worksheet'!AU76 -> 78000 | D104: F | E104: 1 | F104: =FETCHCOMMENT(E104) -> 11A3767 | G104: 1 | H104: =FETCHCOMMENT(G104) -> KIMLEY-HORN AND ASSOCIATES | I104: 11
A105: SAYLOR CONSULTING GROUP | C105: ='[1]DPAC A&E Worksheet'!AU86 -> 1120000 | D105: F | E105: 1 | F105: =FETCHCOMMENT(E105) -> 04A6823 | G105: 1 | H105: =FETCHCOMMENT(G105) -> BROWN & CALDWELL | I105: 4
A106: SWAIM BIOLOGICAL CONSULTING | C106: ='[1]DPAC A&E Worksheet'!AU96 -> 198050 | D106: F | E106: 1 | F106: =FETCHCOMMENT(E106) -> 08A3623 | G106: 1 | H106: =FETCHCOMMENT(G106) -> DUDEK | I106: 8
A107: WAGNER ENGINEERING & SURVEY | C107: ='[1]DPAC A&E Worksheet'!AU102 -> 110000 | D107: F | E107: 1 | F107: =FETCHCOMMENT(E107) -> 07A5738 | G107: 1 | H107: =FETCHCOMMENT(G107) -> STANTEC CONSULTING SERVICES INC | I107: 7
A108: WATEARTH | C108: ='[1]DPAC A&E Worksheet'!AU113 -> 500000.05 | D108: F | E108: 1 | F108: =FETCHCOMMENT(E108) -> 04A6813 | G108: 1 | H108: =FETCHCOMMENT(G108) -> HDR Engineering, Inc. | I108: 4
A109: Z & K CONSULTANTS INC | C109: ='[1]DPAC A&E Worksheet'!AU123 -> 739296.3 | D109: F | E109: 1 | F109: =FETCHCOMMENT(E109) -> 06A2971 | G109: 1 | H109: =FETCHCOMMENT(G109) -> MS ENGINEERS INC | I109: 6
F110: =FETCHCOMMENT(E110) -> 
F111: =FETCHCOMMENT(E111) -> 
F112: =FETCHCOMMENT(E112) -> 
G115: =FETCHCOMMENT(F115) ->  | J115: =FETCHCOMMENT(I115) -> 
A116: Prime Name | C116: # of Contracts | D116: Contract # | E116: Prime Name | F116: # of Contracts | G116: Contract # | H116: Prime Name | I116: # of Contracts | J116: Contract #
A117: ATLAS TECHNICAL CONSULTANTS INC | C117: 2 | D117: =FETCHCOMMENT(C117) -> 06A2969 08A3615 | E117: KIMLEY-HORN AND ASSOCIATES INC | F117: 1 | G117: =FETCHCOMMENT(F117) -> 11A3767 | H117: STANTON CONSTRUCTABILITY SERVICES ,LLC | I117: 1 | J117: =FETCHCOMMENT(I117) -> 04A6685
A118: ARCADIS USA INC | C118: 1 | D118: =FETCHCOMMENT(C118) -> 07A5677 | E118: KLEINFELDER CONSTRUCTION SERVICES INC | F118: 1 | G118: =FETCHCOMMENT(F118) -> 11A3661 | H118: TRANSYSTEMS CORPORATION | I118: 1 | J118: =FETCHCOMMENT(I118) -> 08A3639
A119: BROWN AND CALDWELL | C119: 1 | D119: =FETCHCOMMENT(C119) -> 04A6823 | E119: MS ENGINEERING INC | F119: 1 | G119: =FETCHCOMMENT(F119) -> 06A2971
A120: BUREAU VERITAS NORTH AMERICA INC | C120: 2 | D120: =FETCHCOMMENT(C120) -> 59A1258 08A3604 | E120: NV5 INC | F120: 3 | G120: =FETCHCOMMENT(F120) -> 09A0964 06A2975 07A5729
A121: DUDEK | C121: 1 | D121: =FETCHCOMMENT(C121) -> 08A3623 | E121: PARSONS | F121: 1 | G121: =FETCHCOMMENT(F121) -> 09A0976
A122: HDR ENGINEERING, INC. | C122: 1 | D122: =FETCHCOMMENT(C122) -> 04A6813 | E122: STANTEC CONSULTING SERVICES INC | F122: 1 | G122: =FETCHCOMMENT(F122) -> 07A5738
A124: To see names of prime contractors/contract numbers, place your cursor on comment tab (red triangle).
A125: Caltrans DBE Reports: http://www.dot.ca.gov/hq/bep/reports.htm
